fUSD/lending_fUSD_20260624
["ID","MTS","AMOUNT","RATE_DAILY","PERIOD"]
[426313853,1782280237000,-151.0,0.00024348,2]
[426313850,1782280237000,-200.0,0.00024348,2]
[426313852,1782280237000,-338.07658874,0.00024348,2]
[426313855,1782280237000,-392.85,0.00024377,7]
[426313854,1782280237000,-8409.0,0.00024356,3]
[426313857,1782280237000,-150.0,0.00024384,2]
[426313859,1782280237000,-150.0,0.00024384,2]
[426313858,1782280237000,-200.0,0.00024384,2]
[426313860,1782280237000,-150.0,0.00024384,2]
[426313856,1782280237000,-150.0,0.00024384,2]
[426313861,1782280237000,-150.0,0.00024384,2]
[426313839,1782280237000,-285.0,0.00024065,2]
[426313851,1782280237000,-2682.57183977,0.00024348,2]
[426313836,1782280237000,-190.54110712,0.00024003,2]
[426313814,1782280237000,-165.66019401,0.00024003,2]
[426313833,1782280237000,-195.81620587,0.00024003,2]
[426313812,1782280237000,-214.30101925,0.00024003,2]
[426313815,1782280237000,-173.10526523,0.00024003,2]
[426313862,1782280237000,-150.0,0.00024384,2]
[426313811,1782280237000,-194.42384801,0.00024003,2]
[426313813,1782280237000,-151.30360868,0.00024003,2]
[426313816,1782280237000,-204.16924292,0.00024003,2]
[426313817,1782280237000,-187.22445046,0.00024003,2]
[426313818,1782280237000,-150.49354668,0.00024003,2]
[426313819,1782280237000,-205.33307551,0.00024003,2]
[426313820,1782280237000,-209.10404845,0.00024003,2]
[426313821,1782280237000,-176.49087094,0.00024003,2]
[426313834,1782280237000,-199.24062786,0.00024003,2]
[426313824,1782280237000,-151.20774064,0.00024003,2]
[426313826,1782280237000,-209.59420477,0.00024003,2]
[426313823,1782280237000,-161.14913185,0.00024003,2]
[426313825,1782280237000,-204.69924138,0.00024003,2]
[426313828,1782280237000,-166.77006214,0.00024003,2]
[426313827,1782280237000,-223.50350724,0.00024003,2]
[426313829,1782280237000,-198.59543976,0.00024003,2]
[426313831,1782280237000,-165.92127027,0.00024003,2]
[426313830,1782280237000,-174.3571071,0.00024003,2]
[426313837,1782280237000,-198.8681701,0.00024003,2]
[426313832,1782280237000,-183.61115015,0.00024003,2]
[426313835,1782280237000,-194.99275419,0.00024003,2]
[426313822,1782280237000,-196.88333085,0.00024003,2]
[426313863,1782280237000,-150.0,0.00024384,2]
[426313888,1782280237000,-150.0,0.00024384,2]
[426313870,1782280237000,-150.0,0.00024384,2]
[426313898,1782280237000,-150.0,0.00024384,2]
[426313865,1782280237000,-150.0,0.00024384,2]
[426313899,1782280237000,-150.0,0.00024384,2]
[426313902,1782280237000,-27988.70264234,0.0002451,2]
[426313905,1782280237000,-1000.0,0.00024658,2]
[426313904,1782280237000,-1180.06,0.00024658,2]
[426313903,1782280237000,-161.14,0.00024658,8]
[426313907,1782280237000,-152.0,0.00024687,5]
[426313908,1782280237000,-150.0,0.0002485,2]
[426313906,1782280237000,-828.20565383,0.00024658,2]
[426313909,1782280237000,-287.45234914,0.00024896,2]
[426313910,1782280237000,-260.4103811,0.00024896,2]
[426313912,1782280237000,-2781.82699784,0.00024896,2]
[426313916,1782280237000,-3562.0,0.00024941,2]
[426313911,1782280237000,-200.0,0.00024896,2]
[426313913,1782280237000,-338.07658874,0.00024896,2]
[426313914,1782280237000,-151.0,0.00024896,2]
[426313915,1782280237000,-223.93963107,0.000249,2]
[426313918,1782280237000,-383.0,0.00024941,2]
[426313917,1782280237000,-1277.0,0.00024941,2]
[426313919,1782280237000,-1361.0,0.00024941,2]
[426313921,1782280237000,-935.0,0.00024941,2]
[426313920,1782280237000,-1229.0,0.00024941,2]
[426313897,1782280237000,-150.0,0.00024384,2]
[426313896,1782280237000,-150.0,0.00024384,2]
[426313900,1782280237000,-288.57205291,0.00024384,2]
[426313894,1782280237000,-150.0,0.00024384,2]
[426313872,1782280237000,-150.0,0.00024384,2]
[426313867,1782280237000,-150.0,0.00024384,2]
[426313873,1782280237000,-150.0,0.00024384,2]
[426313864,1782280237000,-150.0,0.00024384,2]
[426313866,1782280237000,-150.0,0.00024384,2]
[426313868,1782280237000,-150.0,0.00024384,2]
[426313874,1782280237000,-150.0,0.00024384,2]
[426313875,1782280237000,-150.0,0.00024384,2]
[426313895,1782280237000,-150.0,0.00024384,2]
[426313878,1782280237000,-150.0,0.00024384,2]
[426313881,1782280237000,-150.0,0.00024384,2]
[426313885,1782280237000,-150.0,0.00024384,2]
[426313876,1782280237000,-150.0,0.00024384,2]
[426313879,1782280237000,-150.0,0.00024384,2]
[426313893,1782280237000,-150.0,0.00024384,2]
[426313877,1782280237000,-150.0,0.00024384,2]
[426313890,1782280237000,-150.0,0.00024384,2]
[426313892,1782280237000,-150.0,0.00024384,2]
[426313891,1782280237000,-150.0,0.00024384,2]
[426313889,1782280237000,-150.0,0.00024384,2]
[426313887,1782280237000,-150.0,0.00024384,2]
[426313880,1782280237000,-150.0,0.00024384,2]
[426313883,1782280237000,-150.0,0.00024384,2]
[426313886,1782280237000,-150.0,0.00024384,2]
[426313901,1782280237000,-150.0,0.000245,2]
[426313926,1782280238000,-572.0,0.00025,2]
[426313928,1782280238000,-130194.66438108,0.00025,30]
[426313923,1782280238000,-312.0,0.00024999,2]
[426313922,1782280238000,-265.0,0.00024974,2]
[426313924,1782280238000,-276.0,0.00025,2]
[426313925,1782280238000,-1291.0,0.00025,2]
[426313927,1782280238000,-150.0,0.00025,2]
[426313975,1782280239000,-2225.01157225,0.00025,30]
[426313974,1782280239000,-216.42324807,8.937e-05,2]
[426313973,1782280239000,-2561.68653837,0.00025,30]
[426314002,1782280240000,-1410.0,0.00025,30]
[426313990,1782280240000,-3648.0,0.00018941,2]
[426313989,1782280240000,-3648.0,0.00015941,2]
[426313991,1782280240000,-753.23113257,0.00021941,2]
[426313992,1782280240000,-2142.31612176,0.00021941,2]
[426313993,1782280240000,-265.712551,0.00021941,2]
[426313999,1782280240000,-153535.51031115,0.00025,30]
[426313995,1782280240000,-278.0,0.00023,2]
[426313997,1782280240000,-1793.77695348,0.00024941,2]
[426313996,1782280240000,-278.0,0.00024,2]
[426314000,1782280240000,-318.53800219,0.00025,30]
[426314001,1782280240000,-7448.4412364,0.00025,30]
[426313998,1782280240000,-1854.22304652,0.00024941,2]
[426314003,1782280240000,-1798.77700831,0.00025,30]
[426314006,1782280240000,-600.0,0.00024384,10]
[426314007,1782280240000,-3203.62302847,0.00025,30]
[426314005,1782280240000,-705.39,0.00025,30]
[426314004,1782280240000,-327.67578066,0.00025,30]
[426314009,1782280240000,-276.13657232,0.00023607,2]
[426314008,1782280240000,-321.0,0.00018868,2]
[426314010,1782280240000,-292.805257,0.00023607,2]
[426313994,1782280240000,-486.74019467,0.00021941,2]
[426314014,1782280242000,-150.0,0.00023,2]
[426314015,1782280242000,-156.15412685,0.00023607,2]
[426314022,1782280245000,-364.0,0.0002,2]
[426314024,1782280245000,-263.99713128,0.000202,2]
[426314023,1782280245000,-1340.46748172,0.0002,2]
[426314021,1782280245000,-221.0,0.0002,2]
[426314027,1782280245000,-1340.46748172,0.000204,2]
[426314020,1782280245000,-314.0,0.00018868,2]
[426314032,1782280245000,-585.0,0.00022424,4]
[426314033,1782280245000,-585.0,0.0002303,4]
[426314028,1782280245000,-1340.46748172,0.000206,2]
[426314034,1782280245000,-1127.32404383,0.00023607,2]
[426314031,1782280245000,-585.0,0.00021818,3]
[426314030,1782280245000,-585.0,0.00021212,3]
[426314035,1782280245000,-15.62778712,0.00023636,5]
[426314029,1782280245000,-585.0,0.00020606,2]
[426314026,1782280245000,-625.47035044,0.000202,2]
[426314025,1782280245000,-451.0,0.000202,2]
[426314037,1782280246000,-268.37426146,0.00023636,5]
[426314036,1782280246000,-300.99795142,0.00023636,5]
[426314038,1782280246000,-370.26403199,0.00024242,6]
[426314042,1782280248000,-623.41960196,0.000147,2]
[426314045,1782280283000,-318.53800219,0.000147,2]
[426314046,1782280301000,-318.53800219,8.636e-05,2]
[426314047,1782280320000,-167.51689781,8.636e-05,2]
[426314048,1782280528000,-308.21,9.844e-05,2]
[426314049,1782280676000,-308.21,9.894e-05,2]
[426314054,1782280841000,-159.55,8.183e-05,2]
[426314056,1782280989000,-153.99862935,9.866e-05,2]
[426314057,1782281139000,-500.0,9.865e-05,2]
[426314058,1782281287000,-216.42324807,9.816e-05,2]
[426314076,1782281437000,-308.21,9.608e-05,2]
[426314107,1782281438000,-175.17480779,9.702e-05,2]
[426314106,1782281438000,-258.21,9.655e-05,2]
[426314105,1782281438000,-50.0,9.655e-05,2]
[426314104,1782281438000,-250.0,9.631e-05,2]
[426314118,1782281439000,-308.21,9.937e-05,2]
[426314119,1782281439000,-308.21,9.984e-05,2]
[426314124,1782281439000,-308.21,0.00010125,2]
[426314122,1782281439000,-1000.0,0.00010096,2]
[426314120,1782281439000,-308.21,0.00010031,2]
[426314116,1782281439000,-70.72842474,9.866e-05,2]
[426314117,1782281439000,-308.21,9.89e-05,2]
[426314115,1782281439000,-145.69482333,9.866e-05,2]
[426314129,1782281439000,-308.21,0.00010219,2]
[426314114,1782281439000,-150.0,9.866e-05,2]
[426314111,1782281439000,-19.98782255,9.749e-05,2]
[426314113,1782281439000,-308.21,9.843e-05,2]
[426314110,1782281439000,-288.22217745,9.749e-05,2]
[426314109,1782281439000,-308.21,9.702e-05,2]
[426314108,1782281439000,-50.12768894,9.702e-05,2]
[426314121,1782281439000,-308.21,0.00010078,2]
[426314112,1782281439000,-308.21,9.796e-05,2]
[426314123,1782281439000,-1828.61964962,0.0001012,2]
[426314143,1782281439000,-1682.75,0.00010398,2]
[426314126,1782281439000,-308.21,0.00010172,2]
[426314145,1782281439000,-677.72233789,0.00010429,2]
[426314125,1782281439000,-164.45,0.0001017,2]
[426314140,1782281439000,-151.0,0.00010362,2]
[426314142,1782281439000,-150.0,0.00010362,2]
[426314134,1782281439000,-151.0,0.00010362,2]
[426314135,1782281439000,-153.0,0.00010362,2]
[426314139,1782281439000,-151.0,0.00010362,2]
[426314137,1782281439000,-152.0,0.00010362,2]
[426314141,1782281439000,-150.0,0.00010362,2]
[426314136,1782281439000,-151.0,0.00010362,2]
[426314133,1782281439000,-308.21,0.0001036,2]
[426314131,1782281439000,-200.0,0.00010299,2]
[426314132,1782281439000,-308.21,0.00010313,2]
[426314130,1782281439000,-308.21,0.00010266,2]
[426314127,1782281439000,-500.0,0.00010204,2]
[426314138,1782281439000,-150.0,0.00010362,2]
[426314128,1782281439000,-181.91,0.00010211,2]
[426314185,1782281440000,-500.0,0.00013698,2]
[426314191,1782281440000,-500.0,0.00013698,2]
[426314190,1782281440000,-500.0,0.00013698,2]
[426314184,1782281440000,-500.0,0.00013698,2]
[426314181,1782281440000,-500.0,0.00013698,2]
[426314182,1782281440000,-500.0,0.00013698,2]
[426314177,1782281440000,-500.0,0.00013698,2]
[426314179,1782281440000,-500.0,0.00013698,2]
[426314186,1782281440000,-500.0,0.00013698,2]
[426314183,1782281440000,-500.0,0.00013698,2]
[426314189,1782281440000,-500.0,0.00013698,2]
[426314195,1782281440000,-500.0,0.00013698,2]
[426314188,1782281440000,-500.0,0.00013698,2]
[426314193,1782281440000,-500.0,0.00013698,2]
[426314192,1782281440000,-500.0,0.00013698,2]
[426314194,1782281440000,-500.0,0.00013698,2]
[426314196,1782281440000,-500.0,0.00013698,2]
[426314203,1782281440000,-902.33,0.00013698,2]
[426314197,1782281440000,-500.0,0.00013698,2]
[426314201,1782281440000,-902.33,0.00013698,2]
[426314200,1782281440000,-500.0,0.00013698,2]
[426314180,1782281440000,-500.0,0.00013698,2]
[426314199,1782281440000,-500.0,0.00013698,2]
[426314187,1782281440000,-500.0,0.00013698,2]
[426314175,1782281440000,-181.91,0.00013614,2]
[426314157,1782281440000,-158.30332156,0.00011044,2]
[426314174,1782281440000,-1107.51946468,0.00013598,2]
[426314198,1782281440000,-500.0,0.00013698,2]
[426314150,1782281440000,-193.0,0.00010569,2]
[426314151,1782281440000,-250.0,0.00010569,2]
[426314152,1782281440000,-166.66,0.00010959,2]
[426314153,1782281440000,-150.0,0.00010959,2]
[426314154,1782281440000,-150.0,0.00010959,2]
[426314156,1782281440000,-1556.89304633,0.00011,2]
[426314158,1782281440000,-166.66,0.00011068,2]
[426314155,1782281440000,-221.12,0.00010977,2]
[426314161,1782281440000,-166.66,0.00011397,2]
[426314160,1782281440000,-166.66,0.00011288,2]
[426314172,1782281440000,-2500.0,0.00013547,2]
[426314159,1782281440000,-166.66,0.00011178,2]
[426314165,1782281440000,-894.21,0.00011826,2]
[426314163,1782281440000,-1254.49,0.00011738,2]
[426314166,1782281440000,-181.91,0.00011913,2]
[426314167,1782281440000,-168.69,0.00012329,2]
[426314168,1782281440000,-221.12,0.0001235,2]
[426314164,1782281440000,-206.19,0.00011759,2]
[426314169,1782281440000,-313.0,0.00012382,2]
[426314170,1782281440000,-317.0,0.00012382,2]
[426314173,1782281440000,-30927.7882,0.00013547,2]
[426314178,1782281440000,-500.0,0.00013698,2]
[426314176,1782281440000,-1000.0,0.00013614,2]
[426314162,1782281440000,-166.66,0.00011507,2]
[426314202,1782281440000,-902.33,0.00013698,2]
[426314171,1782281440000,-317.0,0.00012382,2]
[426314204,1782281440000,-902.33,0.00013698,2]
[426314240,1782281440000,-24254.55767168,0.000149,3]
[426314232,1782281440000,-313.0,0.000147,2]
[426314258,1782281440000,-500.0,0.00014999,2]
[426314237,1782281440000,-5800.0,0.00014891,2]
[426314239,1782281440000,-581.11000147,0.000149,2]
[426314241,1782281440000,-5800.0,0.000149,2]
[426314243,1782281440000,-287.82111157,0.000149,2]
[426314242,1782281440000,-1107.51946461,0.000149,2]
[426314244,1782281440000,-11642.87046629,0.000149,2]
[426314245,1782281440000,-1080.90492825,0.00014999,5]
[426314247,1782281440000,-500.0,0.00014999,2]
[426314234,1782281440000,-1107.51946461,0.00014755,2]
[426314248,1782281440000,-495.34254854,0.00014999,2]
[426314249,1782281440000,-500.0,0.00014999,2]
[426314250,1782281440000,-500.0,0.00014999,2]
[426314253,1782281440000,-500.0,0.00014999,2]
[426314251,1782281440000,-500.0,0.00014999,2]
[426314252,1782281440000,-500.0,0.00014999,2]
[426314255,1782281440000,-500.0,0.00014999,2]
[426314254,1782281440000,-500.0,0.00014999,2]
[426314257,1782281440000,-500.0,0.00014999,2]
[426314259,1782281440000,-252.95,0.00014999,2]
[426314260,1782281440000,-500.0,0.00014999,2]
[426314206,1782281440000,-500.0,0.00013698,2]
[426314246,1782281440000,-1282.64528638,0.00014999,5]
[426314236,1782281440000,-5800.0,0.00014883,2]
[426314256,1782281440000,-500.0,0.00014999,2]
[426314235,1782281440000,-199.5,0.00014866,2]
[426314233,1782281440000,-150.0,0.000147,2]
[426314205,1782281440000,-500.0,0.00013698,2]
[426314207,1782281440000,-500.0,0.00013698,2]
[426314211,1782281440000,-500.0,0.00013698,2]
[426314208,1782281440000,-500.0,0.00013698,2]
[426314209,1782281440000,-500.0,0.00013698,2]
[426314213,1782281440000,-200.0,0.00013699,2]
[426314212,1782281440000,-500.0,0.00013698,2]
[426314214,1782281440000,-221.12,0.00013722,2]
[426314210,1782281440000,-500.0,0.00013698,2]
[426314217,1782281440000,-1107.51946461,0.00014032,2]
[426314216,1782281440000,-1107.51946461,0.00013887,2]
[426314215,1782281440000,-1107.51946461,0.00013743,2]
[426314218,1782281440000,-159.92678227,0.00014032,2]
[426314219,1782281440000,-1107.51946461,0.00014177,2]
[426314231,1782281440000,-318.0,0.000147,2]
[426314229,1782281440000,-320.0,0.000147,2]
[426314226,1782281440000,-318.0,0.000147,2]
[426314223,1782281440000,-320.0,0.000147,2]
[426314230,1782281440000,-152.0,0.000147,2]
[426314224,1782281440000,-151.0,0.000147,2]
[426314222,1782281440000,-1107.51946461,0.00014611,2]
[426314221,1782281440000,-1107.51946461,0.00014466,2]
[426314220,1782281440000,-1107.51946461,0.00014321,2]
[426314228,1782281440000,-321.0,0.000147,2]
[426314238,1782281440000,-500.0,0.00014899,2]
[426314286,1782281441000,-500.0,0.00014999,2]
[426314287,1782281441000,-500.0,0.00014999,2]
[426314295,1782281441000,-500.0,0.00014999,2]
[426314288,1782281441000,-500.0,0.00014999,2]
[426314289,1782281441000,-500.0,0.00014999,2]
[426314290,1782281441000,-500.0,0.00014999,2]
[426314294,1782281441000,-500.0,0.00014999,2]
[426314292,1782281441000,-500.0,0.00014999,2]
[426314296,1782281441000,-500.0,0.00014999,2]
[426314291,1782281441000,-500.0,0.00014999,2]
[426314304,1782281441000,-500.0,0.00014999,2]
[426314297,1782281441000,-500.0,0.00014999,2]
[426314298,1782281441000,-500.0,0.00014999,2]
[426314299,1782281441000,-500.0,0.00014999,2]
[426314307,1782281441000,-902.33,0.00014999,2]
[426314305,1782281441000,-500.0,0.00014999,2]
[426314302,1782281441000,-500.0,0.00014999,2]
[426314301,1782281441000,-500.0,0.00014999,2]
[426314282,1782281441000,-500.0,0.00014999,2]
[426314306,1782281441000,-902.33,0.00014999,2]
[426314293,1782281441000,-500.0,0.00014999,2]
[426314284,1782281441000,-500.0,0.00014999,2]
[426314270,1782281441000,-1000.0,0.00014999,2]
[426314283,1782281441000,-500.0,0.00014999,2]
[426314303,1782281441000,-500.0,0.00014999,2]
[426314262,1782281441000,-500.0,0.00014999,2]
[426314261,1782281441000,-500.0,0.00014999,2]
[426314263,1782281441000,-500.0,0.00014999,2]
[426314264,1782281441000,-500.0,0.00014999,2]
[426314265,1782281441000,-500.0,0.00014999,2]
[426314266,1782281441000,-500.0,0.00014999,2]
[426314267,1782281441000,-188.85698579,0.00014999,2]
[426314268,1782281441000,-1080.90492825,0.00014999,5]
[426314275,1782281441000,-500.0,0.00014999,2]
[426314271,1782281441000,-500.0,0.00014999,2]
[426314274,1782281441000,-500.0,0.00014999,2]
[426314273,1782281441000,-500.0,0.00014999,2]
[426314272,1782281441000,-500.0,0.00014999,2]
[426314269,1782281441000,-1080.90492825,0.00014999,5]
[426314277,1782281441000,-500.0,0.00014999,2]
[426314276,1782281441000,-500.0,0.00014999,2]
[426314278,1782281441000,-500.0,0.00014999,2]
[426314279,1782281441000,-500.0,0.00014999,2]
[426314280,1782281441000,-500.0,0.00014999,2]
[426314281,1782281441000,-500.0,0.00014999,2]
[426314285,1782281441000,-500.0,0.00014999,2]
[426314308,1782281441000,-902.33,0.00014999,2]
[426314300,1782281441000,-500.0,0.00014999,2]
[426314310,1782281441000,-902.33,0.00014999,2]
[426314335,1782281441000,-500.0,0.00014999,2]
[426314337,1782281441000,-500.0,0.00014999,2]
[426314336,1782281441000,-500.0,0.00014999,2]
[426314339,1782281441000,-500.0,0.00014999,2]
[426314340,1782281441000,-415.78,0.00014999,2]
[426314342,1782281441000,-500.0,0.00014999,2]
[426314343,1782281441000,-500.0,0.00014999,2]
[426314345,1782281441000,-500.0,0.00014999,2]
[426314344,1782281441000,-500.0,0.00014999,2]
[426314346,1782281441000,-301.5,0.00014999,2]
[426314350,1782281441000,-13328511.55693876,0.00015,2]
[426314347,1782281441000,-300.0,0.00014999,2]
[426314355,1782281441000,-4496265.28675518,0.00015,2]
[426314348,1782281441000,-308.10051478,0.00014999,2]
[426314354,1782281441000,-1704.82,0.00015,2]
[426314351,1782281441000,-2084.95746349,0.00015,2]
[426314353,1782281441000,-8115.41394053,0.00015,2]
[426314349,1782281441000,-300.0,0.00014999,2]
[426314352,1782281441000,-2522.7355846,0.00015,14]
[426314356,1782281441000,-1174.96694924,0.00015,2]
[426314309,1782281441000,-902.33,0.00014999,2]
[426314338,1782281441000,-500.0,0.00014999,2]
[426314333,1782281441000,-500.0,0.00014999,2]
[426314341,1782281441000,-500.0,0.00014999,2]
[426314324,1782281441000,-902.33,0.00014999,2]
[426314313,1782281441000,-902.33,0.00014999,2]
[426314312,1782281441000,-902.33,0.00014999,2]
[426314314,1782281441000,-902.33,0.00014999,2]
[426314318,1782281441000,-902.33,0.00014999,2]
[426314334,1782281441000,-500.0,0.00014999,2]
[426314316,1782281441000,-902.33,0.00014999,2]
[426314315,1782281441000,-902.33,0.00014999,2]
[426314319,1782281441000,-902.33,0.00014999,2]
[426314317,1782281441000,-902.33,0.00014999,2]
[426314320,1782281441000,-902.33,0.00014999,2]
[426314321,1782281441000,-902.33,0.00014999,2]
[426314311,1782281441000,-902.33,0.00014999,2]
[426314322,1782281441000,-902.33,0.00014999,2]
[426314331,1782281441000,-500.0,0.00014999,2]
[426314323,1782281441000,-902.33,0.00014999,2]
[426314330,1782281441000,-500.0,0.00014999,2]
[426314332,1782281441000,-500.0,0.00014999,2]
[426314328,1782281441000,-500.0,0.00014999,2]
[426314327,1782281441000,-500.0,0.00014999,2]
[426314326,1782281441000,-500.0,0.00014999,2]
[426314325,1782281441000,-902.34383952,0.00014999,2]
[426314329,1782281441000,-500.0,0.00014999,2]
[426314374,1782281458000,-308.22,9.631e-05,2]
[426314376,1782281458000,-308.22,0.00010113,2]
[426314377,1782281458000,-75.34,0.00015,2]
[426314375,1782281458000,-308.22,9.872e-05,2]
[426314378,1782281459000,-1812.51433939,0.00015,2]
[426314379,1782281459000,-48019.16463789,0.00015,2]
[426314381,1782281459000,-680.0,0.00015,2]
[426314380,1782281459000,-19429.25548105,0.00015,2]
[426314386,1782281459000,-279.458431,0.00015,2]
[426314387,1782281459000,-6206.76100002,0.00015,2]
[426314384,1782281459000,-845.0235,0.00015,2]
[426314382,1782281459000,-3909.21959495,0.00015,2]
[426314383,1782281459000,-1924.777,0.00015,2]
[426314385,1782281459000,-2648.012256,0.00015,2]
[426314390,1782281459000,-438.126,0.00015,2]
[426314393,1782281459000,-5333.3785531,0.00015,2]
[426314389,1782281459000,-10130.05500719,0.00015,2]
[426314395,1782281459000,-1151.30067516,0.00015,2]
[426314391,1782281459000,-3871.24244898,0.00015,2]
[426314396,1782281459000,-11243.365178,0.00015,2]
[426314392,1782281459000,-31426.91282622,0.00015,2]
[426314397,1782281459000,-63540.87044249,0.00015,2]
[426314394,1782281459000,-1110.9295,0.00015,2]
[426314398,1782281459000,-501.0,0.00015,2]
[426314388,1782281459000,-1279.40585,0.00015,2]
[426314399,1782281497000,185.291848,0.0002,120]
[426314400,1782281804000,203.821033,0.0002,120]
[426314401,1782282111000,244.585241,0.0002,120]
[426314404,1782282151000,78.12322452,0.00010094,2]
[426314403,1782282151000,130.66454698,0.00010094,2]
[426314402,1782282151000,151.0,0.00010094,2]
[426314412,1782282472000,200.0,9.59e-05,7]
[426314415,1782282631000,-200.0,9.59e-05,2]
[426314420,1782282631000,-500.0,0.00010091,2]
[426314416,1782282631000,-486.0549,9.993e-05,2]
[426314419,1782282631000,-500.0,0.00010091,2]
[426314417,1782282631000,-10393.512793,0.0001004,2]
[426314418,1782282631000,-153.99862935,0.00010091,2]
[426314481,1782282632000,-150.0,0.00010095,2]
[426314457,1782282632000,-150.0,0.00010095,2]
[426314464,1782282632000,-150.0,0.00010095,2]
[426314458,1782282632000,-151.0,0.00010095,2]
[426314461,1782282632000,-151.0,0.00010095,2]
[426314459,1782282632000,-150.0,0.00010095,2]
[426314465,1782282632000,-150.0,0.00010095,2]
[426314466,1782282632000,-150.0,0.00010095,2]
[426314468,1782282632000,-151.0,0.00010095,2]
[426314467,1782282632000,-151.0,0.00010095,2]
[426314469,1782282632000,-150.0,0.00010095,2]
[426314474,1782282632000,-150.0,0.00010095,2]
[426314488,1782282632000,-151.0,0.00010095,2]
[426314473,1782282632000,-151.0,0.00010095,2]
[426314477,1782282632000,-151.0,0.00010095,2]
[426314483,1782282632000,-153.0,0.00010095,2]
[426314484,1782282632000,-150.0,0.00010095,2]
[426314475,1782282632000,-150.0,0.00010095,2]
[426314479,1782282632000,-150.0,0.00010095,2]
[426314485,1782282632000,-152.0,0.00010095,2]
[426314486,1782282632000,-151.0,0.00010095,2]
[426314456,1782282632000,-151.0,0.00010095,2]
[426314487,1782282632000,-151.0,0.00010095,2]
[426314489,1782282632000,-153.0,0.00010095,2]
[426314491,1782282632000,-216.42324807,0.00010108,2]
[426314471,1782282632000,-151.0,0.00010095,2]
[426314463,1782282632000,-151.0,0.00010095,2]
[426314494,1782282632000,-151.0,0.00010113,2]
[426314450,1782282632000,-151.0,0.00010095,2]
[426314421,1782282632000,-354.74045915,0.00010091,2]
[426314424,1782282632000,-153.0,0.00010092,2]
[426314423,1782282632000,-151.0,0.00010092,2]
[426314422,1782282632000,-151.0,0.00010092,2]
[426314426,1782282632000,-151.0,0.00010092,2]
[426314428,1782282632000,-153.0,0.00010093,2]
[426314429,1782282632000,-151.0,0.00010093,2]
[426314427,1782282632000,-150.0,0.00010092,2]
[426314430,1782282632000,-151.0,0.00010093,2]
[426314431,1782282632000,-151.0,0.00010093,2]
[426314432,1782282632000,-151.0,0.00010093,2]
[426314433,1782282632000,-151.0,0.00010093,2]
[426314454,1782282632000,-151.0,0.00010095,2]
[426314436,1782282632000,-152.0,0.00010093,2]
[426314435,1782282632000,-152.0,0.00010093,2]
[426314438,1782282632000,-153.0,0.00010093,2]
[426314439,1782282632000,-152.0,0.00010093,2]
[426314437,1782282632000,-151.0,0.00010093,2]
[426314440,1782282632000,-151.0,0.00010093,2]
[426314441,1782282632000,-150.0,0.00010093,2]
[426314442,1782282632000,-151.0,0.00010093,2]
[426314444,1782282632000,-151.0,0.00010095,2]
[426314446,1782282632000,-151.0,0.00010095,2]
[426314445,1782282632000,-150.0,0.00010095,2]
[426314448,1782282632000,-151.0,0.00010095,2]
[426314452,1782282632000,-151.0,0.00010095,2]
[426314434,1782282632000,-150.0,0.00010093,2]